[Event "DVM U12 2024"]
[Site "Heidelberg"]
[Date "2024.12.29"]
[Round "5"]
[White "Hübler, Lennis"]
[Black "Gilcher, Tamino"]
[Result "1-0"]
[ECO "B01"]
[WhiteElo "1261"]
[BlackElo "1395"]
[Annotator "NA"]
[PlyCount "111"]
[EventDate "2024.12.23"]
[EventType "team-tourn"]
[EventRounds "7"]
[EventCountry "GER"]
[SourceTitle "playchess.com"]
[Source "ChessBase"]
[SourceQuality "1"]
[TimeControl "40/5400+30:1800+30"]

1. e4 {[%emt 0:00:02]} d5 {[%emt 0:00:09]} 2. exd5 {[%emt 0:00:17]} Qxd5 {[%emt 0:00:07]} 3. Nc3 {[%emt 0:00:14]} Qa5 {[%emt 0:00:39]} 4. d4 {[%emt 0:00:29]} c6 {[%emt 0:00:08]} 5. Nf3 {[%emt 0:00:56]} Bg4 {[%emt 0:01:47]} 6. Be2 {[%emt 0:01:00]} Nd7 {[%emt 0:01:23]} 7. Bd2 {[%emt 0:02:08]} Ngf6 {[%emt 0:04:27]} 8. O-O {[%emt 0:04:07]} e6 {[%emt 0:02:48]} 9. Re1 {[%emt 0:03:29]} Bd6 {[%emt 0:00:26]} 10. Nb5 {[%emt 0:01:32]} Bb4 {[%emt 0:12:29]} 11. Bxb4 {[%emt 0:01:36]} Qxb4 {[%emt 0:00:15]} 12. Nc7+ {[%emt 0:00:11]} Ke7 {[%emt 0:00:33]} 13. Nxa8 {[%emt 0:00:16]} Rxa8 {[%emt 0:00:04]} 14. Ne5 {[%emt 0:02:41]} Bf5 {[%emt 0:02:01]} 15. b3 {[%emt 0:02:32]} Rd8 {[%emt 0:00:47]} 16. Qc1 {[%emt 0:11:10]} Qxd4 {[%emt 0:01:02]} 17. Nxd7 {[%emt 0:00:41]} Nxd7 {[%emt 0:09:35]} 18. Qg5+ {[%emt 0:03:02]} Ke8 {[%emt 0:00:53]} 19. Rad1 {[%emt 0:09:13]} Qc3 {[%emt 0:02:52]} 20. Bd3 {[%emt 0:03:16]} Bxd3 {[%emt 0:01:18]} 21. cxd3 {[%emt 0:02:35]} Nb6 {[%emt 0:04:05]} 22. Qd2 {[%emt 0:04:14]} Qf6 {[%emt 0:00:54]} 23. Re3 {[%emt 0:01:52]} Kf8 {[%emt 0:00:45]} 24. Rf3 {[%emt 0:01:19]} Qd4 {[%emt 0:04:46]} 25. h3 {[%emt 0:03:47]} Nd5 {[%emt 0:01:08]} 26. Re1 {[%emt 0:02:46]} Re8 {[%emt 0:00:44]} 27. Re4 {[%emt 0:02:53]} Qb6 {[%emt 0:01:31]} 28. Qg5 {[%emt 0:05:51]} h6 {[%emt 0:06:43]} 29. Qd2 {[%emt 0:07:34]} Nf6 {[%emt 0:01:12]} 30. Qb4+ {[%emt 0:01:20]} Qxb4 {[%emt 0:02:18]} 31. Rxb4 {[%emt 0:00:11]} b6 {[%emt 0:00:08]} 32. Rc4 {[%emt 0:00:52]} c5 {[%emt 0:01:40]} 33. d4 {[%emt 0:00:55]} cxd4 {[%emt 0:04:00]} 34. Rxd4 {[%emt 0:00:11]} Nd5 {[%emt 0:00:07]} 35. b4 {[%emt 0:01:34]} Rc8 {[%emt 0:01:46]} 36. Ra3 {[%emt 0:01:53]} Nc3 {[%emt 0:00:59]} 37. Rd7 {[%emt 0:02:39]} Nb5 {[%emt 0:01:52]} 38. Rb3 {[%emt 0:00:50]} Ke8 {[%emt 0:00:40]} 39. Rb7 {[%emt 0:02:30]} Rc2 {[%emt 0:00:47]} 40. a4 {[%emt 0:01:15]} Nd4 {[%emt 0:01:29]} 41. Rd3 {[%emt 0:32:05]} Nc6 {[%emt 0:30:50]} 42. b5 {[%emt 0:00:50]} Ne5 {[%emt 0:01:22]} 43. Rd4 {[%emt 0:01:15]} Rc1+ {[%emt 0:02:40]} 44. Kh2 {[%emt 0:00:17]} Rc2 {[%emt 0:00:03]} 45. Kg3 {[%emt 0:01:34]} Rc3+ {[%emt 0:15:18]} 46. f3 {[%emt 0:00:30]} Rd3 {[%emt 0:04:11]} 47. Rxd3 {[%emt 0:01:06]} Nxd3 {[%emt 0:00:11]} 48. Rxa7 {[%emt 0:00:18]} Ne5 {[%emt 0:00:14]} 49. a5 {[%emt 0:02:03]} Kd8 {[%emt 0:00:00]} 50. axb6 {[%emt 0:00:00]} Kc8 {[%emt 0:00:00]} 51. Kf4 {[%emt 0:00:00]} Nd7 {[%emt 0:00:00]} 52. Rc7+ {[%emt 0:00:00]} Kd8 {[%emt 0:00:00]} 53. Ke4 {[%emt 0:00:00]} f5+ {[%emt 0:00:00]} 54. Kd4 {[%emt 0:00:00]} g5 {[%emt 0:00:00]} 55. Rxd7+ {[%emt 0:00:00]} Kxd7 {[%emt 0:00:00]} 56. Ke5 {[%emt 0:00:00]} 1-0

[Event "DVM U12 2024"]
[Site "Heidelberg"]
[Date "2024.12.29"]
[Round "5"]
[White "Xanthopoulos, Panagiotis"]
[Black "Libert, Nick"]
[Result "1/2-1/2"]
[ECO "C58"]
[WhiteElo "1104"]
[BlackElo "1548"]
[Annotator "NA"]
[PlyCount "98"]
[EventDate "2024.12.23"]
[EventType "team-tourn"]
[EventRounds "7"]
[EventCountry "GER"]
[SourceTitle "playchess.com"]
[Source "ChessBase"]
[SourceQuality "1"]
[TimeControl "40/5400+30:1800+30"]

1. e4 {[%emt 0:00:06]} e5 {[%emt 0:00:03]} 2. Nf3 {[%emt 0:00:07]} Nc6 {[%emt 0:00:03]} 3. Bc4 {[%emt 0:00:13]} Nf6 {[%emt 0:00:02]} 4. Ng5 {[%emt 0:00:24]} d5 {[%emt 0:00:04]} 5. exd5 {[%emt 0:00:10]} Na5 {[%emt 0:00:04]} 6. Bb3 {[%emt 0:00:12]} Nxb3 {[%emt 0:00:35]} 7. axb3 {[%emt 0:00:08]} Qxd5 {[%emt 0:00:32]} 8. Nf3 {[%emt 0:00:12]} Bd6 {[%emt 0:02:24]} 9. Nc3 {[%emt 0:02:11]} Qc6 {[%emt 0:00:16]} 10. d3 {[%emt 0:00:28]} h6 {[%emt 0:00:31]} 11. Be3 {[%emt 0:00:11]} Be6 {[%emt 0:03:31]} 12. O-O {[%emt 0:04:55]} Bg4 {[%emt 0:01:28]} 13. Re1 {[%emt 0:01:39]} Bxf3 {[%emt 0:00:37]} 14. Qxf3 {[%emt 0:00:15]} Qxf3 {[%emt 0:00:03]} 15. gxf3 {[%emt 0:00:09]} O-O {[%emt 0:02:05]} 16. Rxa7 {[%emt 0:00:36]} Rxa7 {[%emt 0:00:09]} 17. Bxa7 {[%emt 0:00:07]} b6 {[%emt 0:01:11]} 18. Nb5 {[%emt 0:00:21]} Nd7 {[%emt 0:00:10]} 19. c4 {[%emt 0:00:29]} f6 {[%emt 0:00:56]} 20. f4 {[%emt 0:01:33]} Ra8 {[%emt 0:00:58]} 21. fxe5 {[%emt 0:00:30]} fxe5 {[%emt 0:01:10]} 22. Kg2 {[%emt 0:02:49]} Kf7 {[%emt 0:00:50]} 23. Kf3 {[%emt 0:00:19]} Ke6 {[%emt 0:02:23]} 24. d4 {[%emt 0:01:03]} Kf5 {[%emt 0:00:47]} 25. dxe5 {[%emt 0:00:18]} Bxe5 {[%emt 0:01:24]} 26. b4 {[%emt 0:00:21]} c6 {[%emt 0:00:36]} 27. Rd1 {[%emt 0:01:11]} Nf6 {[%emt 0:00:31]} 28. Nd6+ {[%emt 0:00:41]} Bxd6 {[%emt 0:00:33]} 29. Rxd6 {[%emt 0:00:06]} Rxa7 {[%emt 0:00:12]} 30. Rxc6 {[%emt 0:00:09]} Rb7 {[%emt 0:00:01]} 31. c5 {[%emt 0:00:26]} bxc5 {[%emt 0:02:46]} 32. bxc5 {[%emt 0:01:28]} Rxb2 {[%emt 0:00:14]} 33. Rb6 {[%emt 0:00:23]} Rc2 {[%emt 0:01:06]} 34. c6 {[%emt 0:00:15]} Ke5 {[%emt 0:02:29]} 35. h4 {[%emt 0:00:27]} Rc3+ {[%emt 0:01:01]} 36. Kg2 {[%emt 0:00:11]} Nh5 {[%emt 0:01:54]} 37. Rb5+ {[%emt 0:00:13]} Kd6 {[%emt 0:00:43]} 38. Rxh5 {[%emt 0:00:07]} Rxc6 {[%emt 0:00:21]} 39. Kf3 {[%emt 0:00:14]} Ke6 {[%emt 0:00:28]} 40. Kg4 {[%emt 0:00:17]} Kf6 {[%emt 0:00:45]} 41. Rf5+ {[%emt 0:30:17]} Kg6 {[%emt 0:33:37]} 42. h5+ {[%emt 0:00:46]} Kh7 {[%emt 0:00:05]} 43. Rf7 {[%emt 0:00:49]} Rc4+ {[%emt 0:07:56]} 44. f4 {[%emt 0:00:11]} Ra4 {[%emt 0:01:53]} 45. Kg3 {[%emt 0:02:24]} Ra3+ {[%emt 0:00:08]} 46. Kg4 {[%emt 0:00:05]} Ra4 {[%emt 0:00:13]} 47. Kg3 {[%emt 0:00:04]} Ra3+ {[%emt 0:00:49]} 48. Kg4 {[%emt 0:00:07]} Ra4 {[%emt 0:00:03]} 49. Kg3 {[%emt 0:00:05]} Ra3+ {[%emt 0:00:15]} 1/2-1/2

[Event "DVM U12 2024"]
[Site "Heidelberg"]
[Date "2024.12.29"]
[Round "5"]
[White "Birkoben, Georgi"]
[Black "Moritz, Jakob"]
[Result "1-0"]
[ECO "C43"]
[WhiteElo "1062"]
[BlackElo "859"]
[Annotator "NA"]
[PlyCount "90"]
[EventDate "2024.12.23"]
[EventType "team-tourn"]
[EventRounds "7"]
[EventCountry "GER"]
[SourceTitle "playchess.com"]
[Source "ChessBase"]
[SourceQuality "1"]
[TimeControl "40/5400+30:1800+30"]

1. e4 {[%emt 0:00:01]} e5 {[%emt 0:00:13]} 2. Nf3 {[%emt 0:00:05]} Nf6 {[%emt 0:00:19]} 3. d4 {[%emt 0:01:15]} exd4 {[%emt 0:01:31]} 4. e5 {[%emt 0:00:49]} Ng4 {[%emt 0:02:48]} 5. Qxd4 {[%emt 0:01:48]} d6 {[%emt 0:01:00]} 6. h3 {[%emt 0:05:08]} Nc6 {[%emt 0:02:19]} 7. Qd5 {[%emt 0:02:16]} Nb4 {[%emt 0:01:58]} 8. Qb5+ {[%emt 0:02:19]} Nc6 {[%emt 0:01:35]} 9. hxg4 {[%emt 0:01:15]} Bxg4 {[%emt 0:02:11]} 10. Be2 {[%emt 0:04:36]} dxe5 {[%emt 0:03:59]} 11. Nc3 {[%emt 0:07:20]} Qc8 {[%emt 0:06:39]} 12. Nxe5 {[%emt 0:02:19]} Bxe2 {[%emt 0:01:19]} 13. Qxe2 {[%emt 0:01:31]} Nxe5 {[%emt 0:06:04]} 14. Qxe5+ {[%emt 0:00:16]} Qe6 {[%emt 0:00:08]} 15. Qxe6+ {[%emt 0:00:11]} fxe6 {[%emt 0:00:01]} 16. Nb5 {[%emt 0:01:33]} Bd6 {[%emt 0:02:56]} 17. Nxd6+ {[%emt 0:02:57]} cxd6 {[%emt 0:00:09]} 18. Be3 {[%emt 0:00:02]} a6 {[%emt 0:02:39]} 19. O-O-O {[%emt 0:00:35]} Kd7 {[%emt 0:01:16]} 20. f4 {[%emt 0:00:44]} h6 {[%emt 0:02:00]} 21. Bd4 {[%emt 0:00:45]} Rag8 {[%emt 0:01:17]} 22. g4 {[%emt 0:00:54]} Rh7 {[%emt 0:01:19]} 23. Rhe1 {[%emt 0:01:02]} Rf8 {[%emt 0:02:08]} 24. Rf1 {[%emt 0:01:45]} g5 {[%emt 0:01:51]} 25. fxg5 {[%emt 0:01:35]} Rxf1 {[%emt 0:00:57]} 26. Rxf1 {[%emt 0:01:52]} hxg5 {[%emt 0:00:12]} 27. Be3 {[%emt 0:01:08]} Rh4 {[%emt 0:00:58]} 28. Rg1 {[%emt 0:00:31]} Rh3 {[%emt 0:01:53]} 29. Bxg5 {[%emt 0:00:15]} e5 {[%emt 0:01:39]} 30. Bd2 {[%emt 0:00:39]} d5 {[%emt 0:00:40]} 31. c3 {[%emt 0:00:48]} b5 {[%emt 0:00:28]} 32. a3 {[%emt 0:01:03]} e4 {[%emt 0:02:31]} 33. Kd1 {[%emt 0:01:08]} Kc6 {[%emt 0:03:42]} 34. g5 {[%emt 0:00:34]} Kc5 {[%emt 0:01:21]} 35. g6 {[%emt 0:00:57]} Rh8 {[%emt 0:00:45]} 36. g7 Rg8 37. Bh6 d4 38. cxd4+ Kxd4 39. Rf1 Rd8 40. Ke2 Rg8 41. Rf8 Rxg7 42. Bxg7+ Kc4 43. Ra8 b4 44. axb4 e3 45. Rxa6 Kb5 1-0

[Event "DVM U12 2024"]
[Site "Heidelberg"]
[Date "2024.12.29"]
[Round "5"]
[White "Liu, Miran"]
[Black "Podousov, Andrii"]
[Result "0-1"]
[ECO "C50"]
[WhiteElo "962"]
[BlackElo "1105"]
[Annotator "NA"]
[PlyCount "164"]
[EventDate "2024.12.23"]
[EventType "team-tourn"]
[EventRounds "7"]
[EventCountry "GER"]
[SourceTitle "playchess.com"]
[Source "ChessBase"]
[SourceQuality "1"]
[TimeControl "40/5400+30:1800+30"]

1. e4 {[%emt 0:00:04]} e5 {[%emt 0:00:05]} 2. Nf3 {[%emt 0:00:03]} Nc6 {[%emt 0:00:08]} 3. Bc4 {[%emt 0:00:10]} Bc5 {[%emt 0:00:07]} 4. Nc3 {[%emt 0:00:15]} Nf6 {[%emt 0:00:13]} 5. d3 {[%emt 0:00:18]} h6 {[%emt 0:00:10]} 6. O-O {[%emt 0:00:24]} d6 {[%emt 0:00:07]} 7. h3 {[%emt 0:00:09]} O-O {[%emt 0:00:23]} 8. Re1 {[%emt 0:01:08]} Be6 {[%emt 0:00:18]} 9. Bxe6 {[%emt 0:00:43]} fxe6 {[%emt 0:00:08]} 10. Be3 {[%emt 0:01:55]} Bb6 {[%emt 0:00:14]} 11. Qd2 {[%emt 0:02:47]} Nd4 {[%emt 0:00:57]} 12. Bxd4 {[%emt 0:00:37]} exd4 {[%emt 0:00:43]} 13. Ne2 {[%emt 0:01:05]} c5 {[%emt 0:00:26]} 14. Nf4 {[%emt 0:01:07]} e5 {[%emt 0:01:37]} 15. Ne6 {[%emt 0:01:02]} Ba5 {[%emt 0:01:18]} 16. c3 {[%emt 0:00:20]} Qb6 {[%emt 0:01:25]} 17. Nxf8 {[%emt 0:01:23]} Rxf8 {[%emt 0:00:09]} 18. Qe2 {[%emt 0:02:31]} dxc3 {[%emt 0:01:32]} 19. bxc3 {[%emt 0:01:31]} Bxc3 {[%emt 0:00:14]} 20. Rab1 {[%emt 0:00:13]} Qa6 {[%emt 0:03:20]} 21. Rec1 {[%emt 0:00:52]} Bb4 {[%emt 0:00:36]} 22. Nd2 {[%emt 0:07:11]} Qxa2 {[%emt 0:01:45]} 23. Rd1 {[%emt 0:01:22]} d5 {[%emt 0:04:55]} 24. Ra1 {[%emt 0:01:09]} Qb2 {[%emt 0:02:40]} 25. Kf1 {[%emt 0:00:41]} Bc3 {[%emt 0:07:38]} 26. Rac1 {[%emt 0:02:07]} d4 {[%emt 0:02:48]} 27. Nf3 {[%emt 0:01:36]} Qxe2+ {[%emt 0:01:06]} 28. Kxe2 {[%emt 0:00:09]} Re8 {[%emt 0:01:57]} 29. Rb1 {[%emt 0:01:01]} b6 {[%emt 0:00:49]} 30. Nd2 {[%emt 0:01:35]} Nh5 {[%emt 0:01:19]} 31. g3 {[%emt 0:00:30]} Nf6 {[%emt 0:01:22]} 32. Rb3 {[%emt 0:01:09]} Nd7 {[%emt 0:02:21]} 33. Ra3 {[%emt 0:00:23]} Ra8 {[%emt 0:00:57]} 34. Nb1 {[%emt 0:00:18]} Bb4 {[%emt 0:00:28]} 35. Ra4 {[%emt 0:01:07]} a5 {[%emt 0:01:40]} 36. Na3 {[%emt 0:02:05]} Nf6 {[%emt 0:02:03]} 37. Nc4 {[%emt 0:00:13]} b5 {[%emt 0:00:25]} 38. Ra2 {[%emt 0:00:20]} bxc4 {[%emt 0:00:14]} 39. dxc4 {[%emt 0:00:23]} Nd7 {[%emt 0:00:39]} 40. Rf1 {[%emt 0:00:42]} Nb6 {[%emt 0:00:53]} 41. Kd3 {[%emt 0:30:24]} Rf8 {[%emt 0:31:41]} 42. f3 {[%emt 0:03:40]} g5 {[%emt 0:00:43]} 43. g4 {[%emt 0:00:37]} Kg7 {[%emt 0:00:53]} 44. Rff2 {[%emt 0:01:51]} Kg6 {[%emt 0:00:20]} 45. Ra1 {[%emt 0:02:06]} h5 {[%emt 0:00:42]} 46. Rh1 {[%emt 0:04:14]} a4 {[%emt 0:00:22]} 47. Ra1 {[%emt 0:00:55]} Ra8 {[%emt 0:00:42]} 48. Raa2 {[%emt 0:01:01]} a3 {[%emt 0:01:17]} 49. Rf1 {[%emt 0:00:39]} Na4 {[%emt 0:00:36]} 50. Raa1 {[%emt 0:01:39]} Nc3 {[%emt 0:00:28]} 51. Rf2 {[%emt 0:01:53]} a2 {[%emt 0:01:00]} 52. Rg2 {[%emt 0:02:02]} Ra3 {[%emt 0:00:42]} 53. Rb2 {[%emt 0:00:17]} Nd1+ {[%emt 0:00:18]} 54. Kc2 {[%emt 0:00:24]} Nxb2 {[%emt 0:00:11]} 55. Kxb2 {[%emt 0:00:19]} Ra8 {[%emt 0:00:39]} 56. Rxa2 {[%emt 0:00:39]} Rxa2+ {[%emt 0:00:30]} 57. Kxa2 {[%emt 0:00:06]} h4 {[%emt 0:00:28]} 58. Kb2 {[%emt 0:00:34]} Kf6 {[%emt 0:00:16]} 59. Kc2 {[%emt 0:00:21]} Ke6 {[%emt 0:00:13]} 60. Kb3 {[%emt 0:00:22]} d3 {[%emt 0:00:18]} 61. Kb2 {[%emt 0:00:07]} d2 {[%emt 0:01:09]} 62. Kc2 {[%emt 0:00:14]} Kd6 {[%emt 0:01:50]} 63. Kd1 {[%emt 0:00:13]} Kc6 {[%emt 0:00:10]} 64. Kc2 {[%emt 0:00:10]} Kb6 {[%emt 0:00:08]} 65. Kd1 {[%emt 0:00:04]} Ka5 {[%emt 0:00:07]} 66. Kc2 {[%emt 0:00:45]} Ka4 {[%emt 0:00:09]} 67. Kd1 {[%emt 0:00:22]} Kb3 {[%emt 0:00:08]} 68. f4 {[%emt 0:00:11]} exf4 {[%emt 0:00:40]} 69. e5 {[%emt 0:01:15]} Ba5 {[%emt 0:00:02]} 70. e6 {[%emt 0:00:08]} Bd8 {[%emt 0:00:11]} 71. e7 {[%emt 0:00:17]} Bxe7 {[%emt 0:00:08]} 72. Ke2 {[%emt 0:00:30]} Kxc4 {[%emt 0:00:22]} 73. Kxd2 {[%emt 0:02:21]} Kd4 {[%emt 0:01:03]} 74. Ke2 {[%emt 0:00:11]} c4 {[%emt 0:00:07]} 75. Kd2 {[%emt 0:00:04]} f3 {[%emt 0:00:08]} 76. Ke1 {[%emt 0:00:02]} Kd3 {[%emt 0:00:14]} 77. Kd1 {[%emt 0:00:09]} f2 {[%emt 0:00:17]} 78. Kc1 {[%emt 0:00:06]} f1=Q+ {[%emt 0:00:21]} 79. Kb2 {[%emt 0:00:02]} c3+ {[%emt 0:00:51]} 80. Kb3 {[%emt 0:00:32]} Qb1+ {[%emt 0:00:23]} 81. Ka4 {[%emt 0:00:03]} Kc4 {[%emt 0:00:18]} 82. Ka5 {[%emt 0:00:01]} Qb5# {[%emt 0:00:48]} 0-1

[Event "DVM U12 2024"]
[Site "Heidelberg"]
[Date "2024.12.29"]
[Round "5"]
[White "Capurro, Mateo"]
[Black "Ramayanam, Nithya"]
[Result "1/2-1/2"]
[ECO "B72"]
[WhiteElo "956"]
[BlackElo "1566"]
[Annotator "NA"]
[PlyCount "110"]
[EventDate "2024.12.23"]
[EventType "team-tourn"]
[EventRounds "7"]
[EventCountry "GER"]
[SourceTitle "playchess.com"]
[Source "ChessBase"]
[SourceQuality "1"]
[TimeControl "40/5400+30:1800+30"]

1. e4 {[%emt 0:00:01]} c5 {[%emt 0:00:04]} 2. Nf3 {[%emt 0:00:07]} d6 {[%emt 0:00:12]} 3. Nc3 {[%emt 0:01:34]} Nf6 {[%emt 0:02:18]} 4. d4 {[%emt 0:01:26]} cxd4 {[%emt 0:01:40]} 5. Nxd4 {[%emt 0:02:53]} g6 {[%emt 0:01:49]} 6. Be3 {[%emt 0:03:07]} Bg7 {[%emt 0:00:23]} 7. Bd3 {[%emt 0:02:07]} O-O {[%emt 0:06:18]} 8. O-O {[%emt 0:01:12]} Nc6 {[%emt 0:00:20]} 9. h3 {[%emt 0:04:20]} Bd7 {[%emt 0:01:24]} 10. Nf3 {[%emt 0:03:24]} Be6 {[%emt 0:05:00]} 11. Nd4 {[%emt 0:02:48]} Nxd4 {[%emt 0:01:25]} 12. Bxd4 {[%emt 0:00:12]} d5 {[%emt 0:01:34]} 13. Bxf6 {[%emt 0:05:38]} Bxf6 {[%emt 0:01:20]} 14. exd5 {[%emt 0:02:12]} Bxd5 {[%emt 0:01:09]} 15. Nxd5 {[%emt 0:00:50]} Qxd5 {[%emt 0:00:26]} 16. c3 {[%emt 0:02:01]} Rad8 {[%emt 0:01:43]} 17. Be2 {[%emt 0:00:36]} Qe4 {[%emt 0:04:57]} 18. Qe1 {[%emt 0:01:02]} Qc2 {[%emt 0:04:23]} 19. Rb1 {[%emt 0:03:34]} Qa4 {[%emt 0:03:49]} 20. a3 {[%emt 0:00:00]} Qf4 {[%emt 0:04:07]} 21. Qc1 {[%emt 0:04:44]} Qxc1 {[%emt 0:03:41]} 22. Rfxc1 {[%emt 0:00:15]} Rd2 {[%emt 0:05:00]} 23. Bf3 {[%emt 0:01:18]} Bg5 {[%emt 0:05:56]} 24. Rd1 {[%emt 0:04:25]} Rxd1+ {[%emt 0:01:09]} 25. Rxd1 {[%emt 0:00:11]} e6 {[%emt 0:01:37]} 26. c4 {[%emt 0:03:35]} b6 {[%emt 0:00:32]} 27. a4 {[%emt 0:02:02]} Rc8 {[%emt 0:03:09]} 28. b3 {[%emt 0:04:55]} Rd8 {[%emt 0:00:33]} 29. Rxd8+ {[%emt 0:00:32]} Bxd8 {[%emt 0:00:07]} 30. Kf1 {[%emt 0:00:05]} Kf8 {[%emt 0:00:22]} 31. Ke2 {[%emt 0:00:08]} Ke7 {[%emt 0:00:37]} 32. Kd3 {[%emt 0:00:23]} Kd6 {[%emt 0:00:16]} 33. b4 {[%emt 0:01:37]} Bf6 {[%emt 0:01:23]} 34. Be4 {[%emt 0:00:48]} Bg7 {[%emt 0:01:12]} 35. f4 {[%emt 0:02:09]} f6 {[%emt 0:01:18]} 36. g3 {[%emt 0:00:00]} f5 {[%emt 0:00:28]} 37. Bf3 {[%emt 0:00:00]} e5 {[%emt 0:02:49]} 38. fxe5+ {[%emt 0:01:17]} Kxe5 {[%emt 0:01:20]} 39. c5 {[%emt 0:01:19]} Bf8 {[%emt 0:01:00]} 40. cxb6 {[%emt 0:04:00]} axb6 {[%emt 0:00:08]} 41. Kc4 {[%emt 0:30:52]} Bd6 {[%emt 0:32:26]} 42. a5 {[%emt 0:00:32]} bxa5 {[%emt 0:01:44]} 43. bxa5 {[%emt 0:00:12]} Ke6 {[%emt 0:02:47]} 44. a6 {[%emt 0:00:15]} Bb8 {[%emt 0:00:35]} 45. Kc5 {[%emt 0:00:13]} Ba7+ {[%emt 0:02:38]} 46. Kc6 {[%emt 0:00:24]} Kf6 {[%emt 0:02:08]} 47. Kb7 {[%emt 0:00:49]} Bf2 {[%emt 0:00:19]} 48. a7 {[%emt 0:00:08]} Bxa7 {[%emt 0:00:14]} 49. Kxa7 {[%emt 0:00:08]} Kg5 {[%emt 0:00:58]} 50. h4+ {[%emt 0:00:11]} Kh6 {[%emt 0:00:06]} 51. Kb6 {[%emt 0:00:18]} g5 {[%emt 0:00:25]} 52. Kc5 {[%emt 0:01:13]} f4 {[%emt 0:01:15]} 53. hxg5+ {[%emt 0:01:24]} Kxg5 {[%emt 0:00:12]} 54. gxf4+ {[%emt 0:00:10]} Kxf4 {[%emt 0:00:03]} 55. Bd1 {[%emt 0:00:40]} Ke5 {[%emt 0:01:17]} 1/2-1/2

[Event "DVM U12 2024"]
[Site "Heidelberg"]
[Date "2024.12.29"]
[Round "5"]
[White "Hübler, Leonas"]
[Black "Classen, Meara"]
[Result "1-0"]
[ECO "C01"]
[WhiteElo "920"]
[BlackElo "1456"]
[Annotator "NA"]
[PlyCount "183"]
[EventDate "2024.12.23"]
[EventType "team-tourn"]
[EventRounds "7"]
[EventCountry "GER"]
[SourceTitle "playchess.com"]
[Source "ChessBase"]
[SourceQuality "1"]
[TimeControl "40/5400+30:1800+30"]

1. e4 {[%emt 0:00:03]} e6 {[%emt 0:00:04]} 2. Nc3 {[%emt 0:00:38]} d5 {[%emt 0:00:18]} 3. exd5 {[%emt 0:00:32]} exd5 {[%emt 0:00:26]} 4. d4 {[%emt 0:00:16]} Nf6 {[%emt 0:00:15]} 5. Nf3 {[%emt 0:01:01]} Be7 {[%emt 0:01:19]} 6. Bf4 {[%emt 0:01:10]} O-O {[%emt 0:00:44]} 7. Be2 {[%emt 0:00:52]} c6 {[%emt 0:02:22]} 8. h3 {[%emt 0:02:28]} Re8 {[%emt 0:03:28]} 9. O-O {[%emt 0:06:23]} Bf5 {[%emt 0:02:35]} 10. Re1 {[%emt 0:02:31]} Nbd7 {[%emt 0:03:41]} 11. a3 {[%emt 0:12:54]} Rc8 {[%emt 0:08:28]} 12. Rb1 {[%emt 0:10:42]} Ne4 {[%emt 0:07:26]} 13. Nxe4 {[%emt 0:02:32]} Bxe4 {[%emt 0:02:06]} 14. Bd3 {[%emt 0:00:57]} Nf6 {[%emt 0:03:39]} 15. Bxe4 {[%emt 0:02:16]} Nxe4 {[%emt 0:00:09]} 16. Nd2 {[%emt 0:01:24]} Nxd2 {[%emt 0:02:39]} 17. Qxd2 {[%emt 0:01:24]} Bd6 {[%emt 0:01:43]} 18. Rxe8+ {[%emt 0:00:47]} Qxe8 {[%emt 0:02:01]} 19. Bxd6 {[%emt 0:00:33]} Rd8 {[%emt 0:00:41]} 20. Bf4 {[%emt 0:01:32]} h6 {[%emt 0:00:44]} 21. Qa5 {[%emt 0:02:17]} Ra8 {[%emt 0:03:34]} 22. Re1 {[%emt 0:01:13]} Qd7 {[%emt 0:02:05]} 23. Qc7 {[%emt 0:04:16]} Qxc7 {[%emt 0:01:23]} 24. Bxc7 {[%emt 0:00:14]} Rc8 {[%emt 0:00:33]} 25. Bg3 {[%emt 0:00:10]} Kf8 {[%emt 0:00:53]} 26. Bd6+ {[%emt 0:01:21]} Kg8 {[%emt 0:00:20]} 27. Re7 {[%emt 0:01:00]} Rd8 {[%emt 0:00:50]} 28. Bg3 {[%emt 0:00:33]} b6 {[%emt 0:01:26]} 29. Rxa7 {[%emt 0:01:20]} c5 {[%emt 0:00:44]} 30. dxc5 {[%emt 0:00:49]} bxc5 {[%emt 0:00:15]} 31. Rc7 {[%emt 0:00:42]} c4 {[%emt 0:00:29]} 32. Ra7 {[%emt 0:00:38]} d4 {[%emt 0:00:50]} 33. a4 {[%emt 0:00:53]} d3 {[%emt 0:00:58]} 34. cxd3 {[%emt 0:00:07]} cxd3 {[%emt 0:00:08]} 35. Bf4 {[%emt 0:00:07]} Rd4 {[%emt 0:00:37]} 36. Bd2 {[%emt 0:01:07]} Rc4 {[%emt 0:00:31]} 37. Kf1 {[%emt 0:00:45]} Rc2 {[%emt 0:00:29]} 38. Ke1 {[%emt 0:00:10]} Rxb2 {[%emt 0:00:53]} 39. Kd1 {[%emt 0:00:57]} Ra2 {[%emt 0:00:22]} 40. a5 {[%emt 0:01:44]} f6 {[%emt 0:01:25]} 41. Rd7 {[%emt 0:30:47]} Ra1+ {[%emt 0:30:46]} 42. Bc1 {[%emt 0:00:14]} Rxa5 {[%emt 0:00:36]} 43. Rxd3 {[%emt 0:00:18]} Ra2 {[%emt 0:00:25]} 44. Ke1 {[%emt 0:00:21]} Ra1 {[%emt 0:00:23]} 45. Rc3 {[%emt 0:00:35]} Kf7 {[%emt 0:01:34]} 46. Rc5 {[%emt 0:00:48]} Ke6 {[%emt 0:00:48]} 47. Ke2 {[%emt 0:00:20]} Ra2+ {[%emt 0:00:59]} 48. Kf3 {[%emt 0:00:24]} Kd6 {[%emt 0:01:19]} 49. Rh5 {[%emt 0:01:03]} Ra1 {[%emt 0:00:47]} 50. Be3 {[%emt 0:00:19]} Ra4 {[%emt 0:02:42]} 51. Bxh6 {[%emt 0:01:37]} Ra3+ {[%emt 0:03:12]} 52. Be3 {[%emt 0:00:35]} Ke6 {[%emt 0:02:35]} 53. Rh7 {[%emt 0:01:37]} Kf7 {[%emt 0:03:02]} 54. Rh5 {[%emt 0:02:07]} Kg6 {[%emt 0:00:56]} 55. Rb5 {[%emt 0:00:19]} Kf7 {[%emt 0:01:51]} 56. Rb2 {[%emt 0:01:02]} Ke6 {[%emt 0:06:20]} 57. Rb7 {[%emt 0:01:04]} g6 {[%emt 0:01:53]} 58. Kg4 {[%emt 0:02:11]} Ra4+ {[%emt 0:01:16]} 59. f4 {[%emt 0:01:07]} Ra3 {[%emt 0:00:26]} 60. Bd4 {[%emt 0:00:48]} Ra2 {[%emt 0:01:37]} 61. g3 {[%emt 0:00:33]} Rg2 {[%emt 0:01:53]} 62. Rb6+ {[%emt 0:00:18]} Kd5 {[%emt 0:00:54]} 63. Bxf6 {[%emt 0:00:27]} Kc5 {[%emt 0:00:41]} 64. Bd8 {[%emt 0:00:37]} Rd2 {[%emt 0:02:02]} 65. Rxg6 {[%emt 0:01:16]} Rxd8 {[%emt 0:00:31]} 66. Re6 {[%emt 0:00:25]} Rg8+ {[%emt 0:00:25]} 67. Kh4 {[%emt 0:00:58]} Rh8+ {[%emt 0:00:14]} 68. Kg4 {[%emt 0:00:11]} Rg8+ {[%emt 0:00:11]} 69. Kf3 {[%emt 0:00:12]} Rd8 {[%emt 0:01:00]} 70. f5 {[%emt 0:02:05]} Rd3+ {[%emt 0:00:00]} 71. Kf4 {[%emt 0:00:31]} Rd4+ {[%emt 0:00:03]} 72. Kg5 {[%emt 0:00:23]} Rd3 {[%emt 0:00:11]} 73. g4 {[%emt 0:00:39]} Rxh3 {[%emt 0:00:39]} 74. f6 {[%emt 0:00:08]} Rf3 {[%emt 0:00:11]} 75. Re5+ {[%emt 0:00:28]} Kd6 {[%emt 0:00:12]} 76. Rf5 {[%emt 0:00:29]} Rxf5+ {[%emt 0:01:32]} 77. Kxf5 {[%emt 0:00:14]} Kd7 {[%emt 0:00:08]} 78. Kg6 {[%emt 0:00:21]} Ke8 {[%emt 0:00:27]} 79. Kg7 {[%emt 0:00:10]} Kd7 {[%emt 0:00:15]} 80. f7 {[%emt 0:00:10]} Ke6 {[%emt 0:00:06]} 81. f8=Q {[%emt 0:00:22]} Ke5 {[%emt 0:00:08]} 82. Kh7 {[%emt 0:00:19]} Ke6 {[%emt 0:00:18]} 83. g5 {[%emt 0:00:08]} Ke5 {[%emt 0:00:06]} 84. g6 {[%emt 0:00:14]} Ke6 {[%emt 0:00:06]} 85. g7 {[%emt 0:00:06]} Ke5 {[%emt 0:00:07]} 86. g8=Q {[%emt 0:00:31]} Ke4 {[%emt 0:00:09]} 87. Qe6+ {[%emt 0:00:15]} Kd4 {[%emt 0:00:22]} 88. Qd8+ {[%emt 0:00:09]} Kc5 {[%emt 0:00:18]} 89. Qec8+ {[%emt 0:00:46]} Kb5 {[%emt 0:00:08]} 90. Qdd7+ {[%emt 0:00:17]} Kb6 {[%emt 0:00:19]} 91. Qdb7+ {[%emt 0:00:13]} Ka5 {[%emt 0:00:12]} 92. Qca8# {[%emt 0:00:35]} 1-0